[Event "Titled Tuesday Blitz March 21 Early 2023"]
[White "Domingo Nunez, Ruben"]
[Black "Jakubowska, Anna"]
[WhiteFideId "22245570"]
[BlackFideId "1121952"]
[WhiteElo "2404"]
[BlackElo "2001"]
[Result "1-0"]
[Round "03"]
[TimeControl "180+2"]
[Date "2023.03.21"]
[WhiteClock "0:00:12"]
[BlackClock "0:00:15"]

1. b3 {[%clk 0:02:46]}  e5 {[%clk 0:02:59]} 2. Bb2 {[%clk 0:02:47]}  Nc6 {[%clk 0:02:58]} 3. e3 {[%clk 0:02:47]}  f5 {[%clk 0:02:49]} 4. Bb5 {[%clk 0:02:46]}  d6 {[%clk 0:02:39]} 5. d4 {[%clk 0:02:41]}  exd4 {[%clk 0:02:37]} 6. exd4 {[%clk 0:02:39]}  Bd7 {[%clk 0:02:36]} 7. d5 {[%clk 0:02:38]}  Ne5 {[%clk 0:02:35]} 8. Qe2 {[%clk 0:02:32]}  Qe7 {[%clk 0:02:06]} 9. Nc3 {[%clk 0:02:17]}  Bxb5 {[%clk 0:01:59]} 10. Qxb5+ {[%clk 0:02:17]}  c6 {[%clk 0:01:58]} 11. Qe2 {[%clk 0:02:12]}  Nf6 {[%clk 0:01:54]} 12. O-O-O {[%clk 0:02:10]}  g6 {[%clk 0:01:49]} 13. Nh3 {[%clk 0:02:01]}  O-O-O {[%clk 0:01:35]} 14. Kb1 {[%clk 0:01:58]}  Neg4 {[%clk 0:01:30]} 15. Qd3 {[%clk 0:01:46]}  Bh6 {[%clk 0:01:18]} 16. Rhe1 {[%clk 0:01:37]}  Qc7 {[%clk 0:01:18]} 17. Re6 {[%clk 0:00:52]}  Rhe8 {[%clk 0:01:02]} 18. Rde1 {[%clk 0:00:49]}  Ne5 {[%clk 0:01:01]} 19. Qd4 {[%clk 0:00:44]}  Rxe6 {[%clk 0:00:55]} 20. dxe6 {[%clk 0:00:44]}  Bg7 {[%clk 0:00:50]} 21. Qxa7 {[%clk 0:00:44]}  Re8 {[%clk 0:00:41]} 22. Na4 {[%clk 0:00:36]}  Qb8 {[%clk 0:00:37]} 23. Nb6+ {[%clk 0:00:34]}  Kc7 {[%clk 0:00:37]} 24. Qa5 {[%clk 0:00:34]}  Qd8 {[%clk 0:00:24]} 25. e7 {[%clk 0:00:18]}  Rxe7 {[%clk 0:00:16]} 26. Nd5+ {[%clk 0:00:17]}  Kc8 {[%clk 0:00:17]} 27. Qxd8+ {[%clk 0:00:17]}  Kxd8 {[%clk 0:00:18]} 28. Nxe7 {[%clk 0:00:18]}  Kxe7 {[%clk 0:00:19]} 29. f4 {[%clk 0:00:18]}  Ne4 {[%clk 0:00:18]} 30. fxe5 {[%clk 0:00:18]}  dxe5 {[%clk 0:00:18]} 31. Bc1 {[%clk 0:00:16]}  Kd6 {[%clk 0:00:18]} 32. Be3 {[%clk 0:00:14]}  h6 {[%clk 0:00:18]} 33. c4 {[%clk 0:00:12]}  Nf6 {[%clk 0:00:18]} 34. Kc2 {[%clk 0:00:11]}  Ng4 {[%clk 0:00:18]} 35. Rd1+ {[%clk 0:00:12]}  Kc7 {[%clk 0:00:18]} 36. Bg1 {[%clk 0:00:12]}  g5 {[%clk 0:00:16]} 37. Re1 {[%clk 0:00:11]}  e4 {[%clk 0:00:15]} 38. Nf2 {[%clk 0:00:12]}  Nf6 {[%clk 0:00:15]} 39. g4 {[%clk 0:00:12]} 1-0


[Site "https://www.chess.com"]

[Event "Titled Tuesday Blitz March 21 Early 2023"]
[White "wqws"]
[Black "Guzman Moneo, Alberto"]
[BlackFideId "2209616"]
[WhiteElo "2628"]
[BlackElo "2157"]
[Result "1/2-1/2"]
[Round "03"]
[TimeControl "180+2"]
[Date "2023.03.21"]
[WhiteClock "0:00:30"]
[BlackClock "0:00:21"]

1. e4 {[%clk 0:02:58]}  c5 {[%clk 0:02:59]} 2. Nf3 {[%clk 0:02:57]}  Nc6 {[%clk 0:02:59]} 3. d4 {[%clk 0:02:57]}  cxd4 {[%clk 0:03:00]} 4. Nxd4 {[%clk 0:02:58]}  g6 {[%clk 0:03:01]} 5. c4 {[%clk 0:02:58]}  Nf6 {[%clk 0:03:00]} 6. Be3 {[%clk 0:02:58]}  Nxe4 {[%clk 0:02:56]} 7. Bd3 {[%clk 0:02:57]}  Nf6 {[%clk 0:02:51]} 8. O-O {[%clk 0:02:57]}  Bg7 {[%clk 0:02:51]} 9. Nc3 {[%clk 0:02:57]}  O-O {[%clk 0:02:50]} 10. Be2 {[%clk 0:02:55]}  d6 {[%clk 0:02:49]} 11. Rc1 {[%clk 0:02:55]}  Bd7 {[%clk 0:02:49]} 12. h3 {[%clk 0:02:53]}  Rc8 {[%clk 0:02:49]} 13. Bf3 {[%clk 0:02:50]}  a6 {[%clk 0:02:48]} 14. b3 {[%clk 0:02:50]}  Nxd4 {[%clk 0:02:41]} 15. Bxd4 {[%clk 0:02:51]}  Bc6 {[%clk 0:02:41]} 16. Re1 {[%clk 0:02:42]}  Qd7 {[%clk 0:02:28]} 17. Bxf6 {[%clk 0:02:32]}  Bxf6 {[%clk 0:02:27]} 18. Bg4 {[%clk 0:02:32]}  e6 {[%clk 0:02:22]} 19. Nd5 {[%clk 0:02:31]}  Bd8 {[%clk 0:02:10]} 20. Nf4 {[%clk 0:02:22]}  f5 {[%clk 0:02:08]} 21. Bf3 {[%clk 0:02:19]}  Re8 {[%clk 0:02:00]} 22. Rc2 {[%clk 0:01:51]}  Bg5 {[%clk 0:01:56]} 23. Nd3 {[%clk 0:01:48]}  Bf6 {[%clk 0:01:46]} 24. Bxc6 {[%clk 0:01:35]}  Qxc6 {[%clk 0:01:38]} 25. Rce2 {[%clk 0:01:05]}  Kf7 {[%clk 0:01:37]} 26. Qc1 {[%clk 0:01:01]}  Bg7 {[%clk 0:01:32]} 27. Nf4 {[%clk 0:01:00]}  Bh6 {[%clk 0:01:29]} 28. Qd2 {[%clk 0:00:51]}  b5 {[%clk 0:01:14]} 29. g3 {[%clk 0:00:49]}  bxc4 {[%clk 0:01:13]} 30. bxc4 {[%clk 0:00:49]}  Qxc4 {[%clk 0:01:08]} 31. Qxd6 {[%clk 0:00:49]}  Bxf4 {[%clk 0:01:08]} 32. gxf4 {[%clk 0:00:48]}  Re7 {[%clk 0:01:01]} 33. Qe5 {[%clk 0:00:41]}  Qc5 {[%clk 0:00:54]} 34. Qb2 {[%clk 0:00:36]}  Qc3 {[%clk 0:00:48]} 35. Qb6 {[%clk 0:00:34]}  Rc6 {[%clk 0:00:48]} 36. Qe3 {[%clk 0:00:26]}  Qxe3 {[%clk 0:00:47]} 37. fxe3 {[%clk 0:00:26]}  e5 {[%clk 0:00:46]} 38. Kf2 {[%clk 0:00:24]}  Rc4 {[%clk 0:00:44]} 39. fxe5 {[%clk 0:00:23]}  Rxe5 {[%clk 0:00:44]} 40. Rd1 {[%clk 0:00:23]}  f4 {[%clk 0:00:41]} 41. Rd7+ {[%clk 0:00:22]}  Ke6 {[%clk 0:00:41]} 42. Rxh7 {[%clk 0:00:22]}  fxe3+ {[%clk 0:00:41]} 43. Rxe3 {[%clk 0:00:23]}  Rc2+ {[%clk 0:00:40]} 44. Kf3 {[%clk 0:00:23]}  Rxe3+ {[%clk 0:00:38]} 45. Kxe3 {[%clk 0:00:24]}  Rxa2 {[%clk 0:00:39]} 46. h4 {[%clk 0:00:24]}  Kf5 {[%clk 0:00:38]} 47. Rf7+ {[%clk 0:00:23]}  Kg4 {[%clk 0:00:38]} 48. Rf4+ {[%clk 0:00:23]}  Kh5 {[%clk 0:00:38]} 49. Rc4 {[%clk 0:00:22]}  a5 {[%clk 0:00:36]} 50. Kf3 {[%clk 0:00:21]}  a4 {[%clk 0:00:34]} 51. Kg3 {[%clk 0:00:21]}  Ra3+ {[%clk 0:00:34]} 52. Kg2 {[%clk 0:00:21]}  Ra1 {[%clk 0:00:33]} 53. Rb4 {[%clk 0:00:21]}  a3 {[%clk 0:00:33]} 54. Ra4 {[%clk 0:00:21]}  a2 {[%clk 0:00:33]} 55. Kh2 {[%clk 0:00:21]}  Kh6 {[%clk 0:00:32]} 56. Kg2 {[%clk 0:00:21]}  Kg7 {[%clk 0:00:32]} 57. Kh2 {[%clk 0:00:21]}  Kf6 {[%clk 0:00:33]} 58. Kg2 {[%clk 0:00:21]}  Ke6 {[%clk 0:00:33]} 59. Kh2 {[%clk 0:00:21]}  Kd5 {[%clk 0:00:34]} 60. Kg2 {[%clk 0:00:22]}  Kc5 {[%clk 0:00:34]} 61. Kh2 {[%clk 0:00:22]}  Kb5 {[%clk 0:00:34]} 62. Ra8 {[%clk 0:00:22]}  Kb4 {[%clk 0:00:35]} 63. Rb8+ {[%clk 0:00:23]}  Kc3 {[%clk 0:00:35]} 64. Rc8+ {[%clk 0:00:23]}  Kd4 {[%clk 0:00:35]} 65. Ra8 {[%clk 0:00:23]}  Ke5 {[%clk 0:00:34]} 66. Ra4 {[%clk 0:00:23]}  Kf5 {[%clk 0:00:34]} 67. Kg2 {[%clk 0:00:23]}  Kf6 {[%clk 0:00:33]} 68. Ra5 {[%clk 0:00:24]}  Kg7 {[%clk 0:00:34]} 69. h5 {[%clk 0:00:20]}  gxh5 {[%clk 0:00:31]} 70. Ra8 {[%clk 0:00:20]}  h4 {[%clk 0:00:28]} 71. Ra6 {[%clk 0:00:20]}  Kh7 {[%clk 0:00:26]} 72. Kh2 {[%clk 0:00:20]}  Kg7 {[%clk 0:00:26]} 73. Ra4 {[%clk 0:00:21]}  Kg6 {[%clk 0:00:25]} 74. Ra5 {[%clk 0:00:21]}  Kf6 {[%clk 0:00:25]} 75. Ra6+ {[%clk 0:00:21]}  Kg5 {[%clk 0:00:26]} 76. Ra5+ {[%clk 0:00:21]}  Kf4 {[%clk 0:00:26]} 77. Ra4+ {[%clk 0:00:21]}  Ke3 {[%clk 0:00:26]} 78. Ra3+ {[%clk 0:00:22]}  Kd2 {[%clk 0:00:26]} 79. Ra8 {[%clk 0:00:22]}  Ke3 {[%clk 0:00:25]} 80. Re8+ {[%clk 0:00:23]}  Kf4 {[%clk 0:00:25]} 81. Rf8+ {[%clk 0:00:23]}  Kg4 {[%clk 0:00:25]} 82. Rg8+ {[%clk 0:00:23]}  Kf5 {[%clk 0:00:24]} 83. Ra8 {[%clk 0:00:24]}  h3 {[%clk 0:00:24]} 84. Ra4 {[%clk 0:00:24]}  Ke5 {[%clk 0:00:24]} 85. Ra8 {[%clk 0:00:23]}  Ke4 {[%clk 0:00:24]} 86. Re8+ {[%clk 0:00:23]}  Kd5 {[%clk 0:00:24]} 87. Rd8+ {[%clk 0:00:24]}  Kc6 {[%clk 0:00:24]} 88. Ra8 {[%clk 0:00:24]}  Kb7 {[%clk 0:00:25]} 89. Ra3 {[%clk 0:00:24]}  Kb6 {[%clk 0:00:24]} 90. Ra8 {[%clk 0:00:25]}  Kb7 {[%clk 0:00:24]} 91. Ra3 {[%clk 0:00:25]}  Kc6 {[%clk 0:00:24]} 92. Ra6+ {[%clk 0:00:25]}  Kc5 {[%clk 0:00:24]} 93. Ra3 {[%clk 0:00:26]}  Kb4 {[%clk 0:00:24]} 94. Ra8 {[%clk 0:00:26]}  Kb3 {[%clk 0:00:22]} 95. Rb8+ {[%clk 0:00:27]}  Ka3 {[%clk 0:00:22]} 96. Ra8+ {[%clk 0:00:27]}  Kb2 {[%clk 0:00:23]} 97. Rb8+ {[%clk 0:00:28]}  Kc2 {[%clk 0:00:23]} 98. Ra8 {[%clk 0:00:29]}  Kb3 {[%clk 0:00:20]} 99. Rb8+ {[%clk 0:00:29]}  Ka4 {[%clk 0:00:20]} 100. Ra8+ {[%clk 0:00:29]}  Kb5 {[%clk 0:00:21]} 101. Rb8+ {[%clk 0:00:29]}  Ka6 {[%clk 0:00:21]} 102. Ra8+ {[%clk 0:00:30]}  Kb7 {[%clk 0:00:21]} 1/2-1/2


[Site "https://www.chess.com"]

[Event "Titled Tuesday Blitz March 21 Early 2023"]
[White "Lopez Del Alamo, Antonio"]
[Black "Budrewicz, Krzysztof"]
[WhiteFideId "2227339"]
[BlackFideId "1127950"]
[WhiteElo "2175"]
[BlackElo "2230"]
[Result "0-1"]
[Round "03"]
[TimeControl "180+2"]
[Date "2023.03.21"]
[WhiteClock "0:00:01"]
[BlackClock "0:00:15"]

1. e4 {[%clk 0:03:00]}  e5 {[%clk 0:02:58]} 2. Bc4 {[%clk 0:02:59]}  Nc6 {[%clk 0:02:57]} 3. Nc3 {[%clk 0:02:58]}  Nf6 {[%clk 0:02:57]} 4. d3 {[%clk 0:02:58]}  Bc5 {[%clk 0:02:57]} 5. f4 {[%clk 0:02:58]}  d6 {[%clk 0:02:52]} 6. Nf3 {[%clk 0:02:58]}  Bg4 {[%clk 0:02:51]} 7. Bb5 {[%clk 0:02:58]}  O-O {[%clk 0:02:49]} 8. Bxc6 {[%clk 0:02:53]}  bxc6 {[%clk 0:02:49]} 9. fxe5 {[%clk 0:02:54]}  dxe5 {[%clk 0:02:49]} 10. Qe2 {[%clk 0:02:53]}  Bd4 {[%clk 0:02:43]} 11. Nd1 {[%clk 0:02:53]}  Nd7 {[%clk 0:02:40]} 12. Ne3 {[%clk 0:02:46]}  Bh5 {[%clk 0:02:39]} 13. O-O {[%clk 0:02:45]}  f5 {[%clk 0:02:37]} 14. exf5 {[%clk 0:02:43]}  Rxf5 {[%clk 0:02:35]} 15. Kh1 {[%clk 0:02:43]}  Rf8 {[%clk 0:02:34]} 16. Bd2 {[%clk 0:02:29]}  Bxb2 {[%clk 0:02:30]} 17. Rae1 {[%clk 0:02:19]}  Bd4 {[%clk 0:02:28]} 18. Nc4 {[%clk 0:02:18]}  Qf6 {[%clk 0:02:09]} 19. Qe4 {[%clk 0:02:12]}  Bg6 {[%clk 0:02:03]} 20. Qe2 {[%clk 0:01:58]}  Bh5 {[%clk 0:01:50]} 21. Qe4 {[%clk 0:01:54]}  Nc5 {[%clk 0:01:45]} 22. Qh4 {[%clk 0:01:43]}  Bxf3 {[%clk 0:01:30]} 23. Qxf6 {[%clk 0:01:42]}  gxf6 {[%clk 0:01:26]} 24. Rxf3 {[%clk 0:01:39]}  Na4 {[%clk 0:01:17]} 25. Bh6 {[%clk 0:01:29]}  Rf7 {[%clk 0:01:16]} 26. Ref1 {[%clk 0:01:25]}  e4 {[%clk 0:01:09]} 27. dxe4 {[%clk 0:01:15]}  Re8 {[%clk 0:01:09]} 28. Rf4 {[%clk 0:00:46]}  Nc5 {[%clk 0:01:03]} 29. Rg4+ {[%clk 0:00:39]}  Kh8 {[%clk 0:01:03]} 30. e5 {[%clk 0:00:28]}  Bxe5 {[%clk 0:01:02]} 31. Nxe5 {[%clk 0:00:27]}  Rxe5 {[%clk 0:01:02]} 32. Rb4 {[%clk 0:00:21]}  Re8 {[%clk 0:00:59]} 33. g4 {[%clk 0:00:17]}  Nd7 {[%clk 0:00:50]} 34. g5 {[%clk 0:00:14]}  f5 {[%clk 0:00:43]} 35. Rbf4 {[%clk 0:00:14]}  Re5 {[%clk 0:00:41]} 36. h4 {[%clk 0:00:13]}  Nc5 {[%clk 0:00:37]} 37. Rd4 {[%clk 0:00:10]}  Ne6 {[%clk 0:00:35]} 38. Rb4 {[%clk 0:00:10]}  Rd7 {[%clk 0:00:26]} 39. Rb8+ {[%clk 0:00:08]}  Rd8 {[%clk 0:00:26]} 40. Rxd8+ {[%clk 0:00:08]}  Nxd8 {[%clk 0:00:27]} 41. Rd1 {[%clk 0:00:08]}  Rd5 {[%clk 0:00:27]} 42. Re1 {[%clk 0:00:08]}  Kg8 {[%clk 0:00:27]} 43. c4 {[%clk 0:00:06]}  Rd7 {[%clk 0:00:24]} 44. h5 {[%clk 0:00:06]}  Rd4 {[%clk 0:00:17]} 45. Kg2 {[%clk 0:00:04]}  Kf7 {[%clk 0:00:15]} 46. Kg3 {[%clk 0:00:03]}  Ne6 {[%clk 0:00:15]} 47. g6+ {[%clk 0:00:02]}  hxg6 {[%clk 0:00:16]} 48. hxg6+ {[%clk 0:00:03]}  Kf6 {[%clk 0:00:16]} 49. g7 {[%clk 0:00:01]}  Rg4+ {[%clk 0:00:16]} 50. Kf3 {[%clk 0:00:01]}  Nxg7 {[%clk 0:00:15]} 0-1


[Site "https://www.chess.com"]

[Event "Titled Tuesday Blitz March 21 Early 2023"]
[White "Rastbod, Ali"]
[Black "Abduzhaparov"]
[WhiteFideId "12567477"]
[WhiteElo "2211"]
[BlackElo "2339"]
[Result "0-1"]
[Round "03"]
[TimeControl "180+2"]
[Date "2023.03.21"]
[WhiteClock "0:00:02"]
[BlackClock "0:00:58"]

1. e4 {[%clk 0:02:57]}  d6 {[%clk 0:03:00]} 2. d4 {[%clk 0:02:57]}  Nf6 {[%clk 0:03:01]} 3. Nc3 {[%clk 0:02:56]}  e5 {[%clk 0:03:02]} 4. Nf3 {[%clk 0:02:54]}  Nbd7 {[%clk 0:03:02]} 5. Bc4 {[%clk 0:02:54]}  Be7 {[%clk 0:03:03]} 6. O-O {[%clk 0:02:55]}  O-O {[%clk 0:03:03]} 7. Re1 {[%clk 0:02:55]}  c6 {[%clk 0:03:03]} 8. a4 {[%clk 0:02:55]}  b6 {[%clk 0:03:03]} 9. h3 {[%clk 0:02:55]}  a6 {[%clk 0:03:04]} 10. d5 {[%clk 0:02:51]}  c5 {[%clk 0:03:00]} 11. Bf1 {[%clk 0:02:28]}  Kh8 {[%clk 0:02:59]} 12. Nd2 {[%clk 0:02:27]}  Ng8 {[%clk 0:02:59]} 13. Nc4 {[%clk 0:02:27]}  Ndf6 {[%clk 0:02:55]} 14. Rb1 {[%clk 0:02:22]}  a5 {[%clk 0:02:50]} 15. Nb5 {[%clk 0:02:19]}  Ne8 {[%clk 0:02:49]} 16. c3 {[%clk 0:02:17]}  Bd7 {[%clk 0:02:28]} 17. Nca3 {[%clk 0:02:16]}  Nc7 {[%clk 0:02:20]} 18. Nxc7 {[%clk 0:02:12]}  Qxc7 {[%clk 0:02:20]} 19. Bb5 {[%clk 0:02:13]}  f5 {[%clk 0:02:09]} 20. Bxd7 {[%clk 0:02:11]}  Qxd7 {[%clk 0:02:10]} 21. exf5 {[%clk 0:02:11]}  Qxf5 {[%clk 0:02:02]} 22. Be3 {[%clk 0:02:11]}  Bg5 {[%clk 0:01:54]} 23. Bxg5 {[%clk 0:01:59]}  Qxg5 {[%clk 0:01:55]} 24. Nc4 {[%clk 0:01:59]}  Rf6 {[%clk 0:01:50]} 25. Qd2 {[%clk 0:01:49]}  Qh4 {[%clk 0:01:36]} 26. Nxb6 {[%clk 0:01:38]}  Raf8 {[%clk 0:01:37]} 27. Re2 {[%clk 0:01:29]}  Rg6 {[%clk 0:01:37]} 28. Qe3 {[%clk 0:01:25]}  Nf6 {[%clk 0:01:35]} 29. Kh2 {[%clk 0:01:02]}  Ng4+ {[%clk 0:01:32]} 30. Kh1 {[%clk 0:00:54]}  Nxe3 {[%clk 0:01:33]} 31. fxe3 {[%clk 0:00:54]}  Rf2 {[%clk 0:01:20]} 32. Rxf2 {[%clk 0:00:14]}  Qxf2 {[%clk 0:01:19]} 33. Rg1 {[%clk 0:00:15]}  Qxb2 {[%clk 0:01:16]} 34. Nc8 {[%clk 0:00:10]}  Qxc3 {[%clk 0:01:10]} 35. Ne7 {[%clk 0:00:09]}  Rf6 {[%clk 0:01:08]} 36. Rb1 {[%clk 0:00:08]}  h5 {[%clk 0:01:02]} 37. Kh2 {[%clk 0:00:05]}  Qxe3 {[%clk 0:00:59]} 38. Rb8+ {[%clk 0:00:02]}  Kh7 {[%clk 0:00:58]} 0-1


[Site "https://www.chess.com"]

[Event "Titled Tuesday Blitz March 21 Early 2023"]
[White "Khumalo, Keith"]
[Black "Rosenberg, Evan S"]
[WhiteFideId "14319470"]
[BlackFideId "2019299"]
[WhiteElo "2056"]
[BlackElo "2320"]
[Result "1-0"]
[Round "03"]
[TimeControl "180+2"]
[Date "2023.03.21"]
[WhiteClock "0:01:56"]
[BlackClock "0:00:14"]

1. d4 {[%clk 0:02:56]}  d5 {[%clk 0:02:59]} 2. c4 {[%clk 0:02:55]}  e6 {[%clk 0:02:58]} 3. Nf3 {[%clk 0:02:53]}  c5 {[%clk 0:02:58]} 4. g3 {[%clk 0:02:53]}  dxc4 {[%clk 0:02:55]} 5. Bg2 {[%clk 0:02:51]}  Nc6 {[%clk 0:02:52]} 6. O-O {[%clk 0:02:50]}  cxd4 {[%clk 0:02:48]} 7. Qa4 {[%clk 0:02:51]}  Bd7 {[%clk 0:02:43]} 8. Qxc4 {[%clk 0:02:50]}  Qb6 {[%clk 0:02:36]} 9. Bf4 {[%clk 0:02:41]}  Qxb2 {[%clk 0:02:21]} 10. Nbd2 {[%clk 0:02:41]}  Qc3 {[%clk 0:01:56]} 11. Qb5 {[%clk 0:02:41]}  Qb4 {[%clk 0:01:51]} 12. Qd3 {[%clk 0:02:38]}  Qc3 {[%clk 0:01:38]} 13. Qb5 {[%clk 0:02:38]}  Nd8 {[%clk 0:01:19]} 14. Qe5 {[%clk 0:02:24]}  Nc6 {[%clk 0:00:56]} 15. Qc7 {[%clk 0:02:15]}  Rc8 {[%clk 0:00:38]} 16. Qxb7 {[%clk 0:02:14]}  Qb4 {[%clk 0:00:38]} 17. Qa6 {[%clk 0:02:11]}  Qb6 {[%clk 0:00:34]} 18. Qd3 {[%clk 0:02:11]}  Nf6 {[%clk 0:00:34]} 19. Nc4 {[%clk 0:02:10]}  Qd8 {[%clk 0:00:28]} 20. Nd6+ {[%clk 0:02:08]}  Bxd6 {[%clk 0:00:28]} 21. Bxd6 {[%clk 0:02:09]}  Ne7 {[%clk 0:00:18]} 22. Ne5 {[%clk 0:02:08]}  O-O {[%clk 0:00:16]} 23. Qa3 {[%clk 0:02:07]}  Re8 {[%clk 0:00:16]} 24. Qxa7 {[%clk 0:02:07]}  Nc6 {[%clk 0:00:14]} 25. Bxc6 {[%clk 0:02:03]}  Bxc6 {[%clk 0:00:14]} 26. Qxf7+ {[%clk 0:02:03]}  Kh8 {[%clk 0:00:14]} 27. Qa7 {[%clk 0:01:53]}  Qxd6 {[%clk 0:00:13]} 28. Nf7+ {[%clk 0:01:54]}  Kg8 {[%clk 0:00:13]} 29. Nxd6 {[%clk 0:01:55]}  Ra8 {[%clk 0:00:14]} 30. Qf7+ {[%clk 0:01:55]}  Kh8 {[%clk 0:00:14]} 31. Nxe8 {[%clk 0:01:56]}  Ne4 {[%clk 0:00:14]} 32. Qxg7# {[%clk 0:01:56]} 1-0


[Site "https://www.chess.com"]

[Event "Titled Tuesday Blitz March 21 Early 2023"]
[White "Vlassov, Nikolai"]
[Black "Hernandez Leon, Alberto"]
[WhiteFideId "4103360"]
[BlackFideId "2272555"]
[WhiteElo "2324"]
[BlackElo "2239"]
[Result "1-0"]
[Round "03"]
[TimeControl "180+2"]
[Date "2023.03.21"]
[WhiteClock "0:00:11"]
[BlackClock "0:00:01"]

1. e4 {[%clk 0:03:00]}  e5 {[%clk 0:02:59]} 2. Bc4 {[%clk 0:03:00]}  Nf6 {[%clk 0:02:59]} 3. d3 {[%clk 0:02:59]}  c6 {[%clk 0:02:59]} 4. Nf3 {[%clk 0:02:59]}  d5 {[%clk 0:02:57]} 5. Bb3 {[%clk 0:02:59]}  Nbd7 {[%clk 0:02:45]} 6. Nc3 {[%clk 0:02:56]}  Bb4 {[%clk 0:02:36]} 7. O-O {[%clk 0:02:53]}  Bxc3 {[%clk 0:02:32]} 8. bxc3 {[%clk 0:02:52]}  O-O {[%clk 0:02:12]} 9. exd5 {[%clk 0:02:49]}  Nxd5 {[%clk 0:02:08]} 10. Bd2 {[%clk 0:02:38]}  Qf6 {[%clk 0:02:01]} 11. Re1 {[%clk 0:02:32]}  Re8 {[%clk 0:01:55]} 12. Ng5 {[%clk 0:02:24]}  h6 {[%clk 0:01:31]} 13. Ne4 {[%clk 0:02:21]}  Qg6 {[%clk 0:01:31]} 14. Qf3 {[%clk 0:02:13]}  N7f6 {[%clk 0:01:23]} 15. Nd6 {[%clk 0:01:53]}  Bg4 {[%clk 0:01:10]} 16. Qg3 {[%clk 0:01:17]}  Nh5 {[%clk 0:01:09]} 17. Qh4 {[%clk 0:01:17]}  Bf3 {[%clk 0:01:07]} 18. Qh3 {[%clk 0:01:16]}  Bxg2 {[%clk 0:00:54]} 19. Qxg2 {[%clk 0:01:15]}  Qxd6 {[%clk 0:00:52]} 20. Kh1 {[%clk 0:01:11]}  Nhf4 {[%clk 0:00:46]} 21. Qf3 {[%clk 0:01:08]}  Re6 {[%clk 0:00:42]} 22. c4 {[%clk 0:00:45]}  Nf6 {[%clk 0:00:34]} 23. c5 {[%clk 0:00:41]}  Qd4 {[%clk 0:00:23]} 24. Bxf4 {[%clk 0:00:37]}  exf4 {[%clk 0:00:18]} 25. Bxe6 {[%clk 0:00:36]}  fxe6 {[%clk 0:00:18]} 26. Rab1 {[%clk 0:00:35]}  e5 {[%clk 0:00:11]} 27. Rxb7 {[%clk 0:00:34]}  Qxc5 {[%clk 0:00:11]} 28. Rg1 {[%clk 0:00:27]}  g5 {[%clk 0:00:09]} 29. h4 {[%clk 0:00:27]}  g4 {[%clk 0:00:08]} 30. Rxg4+ {[%clk 0:00:26]}  Kh8 {[%clk 0:00:03]} 31. Rg6 {[%clk 0:00:17]}  Qd5 {[%clk 0:00:02]} 32. Rxh6+ {[%clk 0:00:14]}  Kg8 {[%clk 0:00:02]} 33. Qxd5+ {[%clk 0:00:13]}  Nxd5 {[%clk 0:00:03]} 34. Rxc6 {[%clk 0:00:12]}  Rd8 {[%clk 0:00:02]} 35. Rxa7 {[%clk 0:00:12]}  e4 {[%clk 0:00:01]} 36. dxe4 {[%clk 0:00:11]} 1-0


[Site "https://www.chess.com"]

[Event "Titled Tuesday Blitz March 21 Early 2023"]
[White "Ozates, Tuna"]
[Black "Bogaudinov, Rushan"]
[WhiteFideId "6354521"]
[BlackFideId "4129288"]
[WhiteElo "2151"]
[BlackElo "1949"]
[Result "1-0"]
[Round "03"]
[TimeControl "180+2"]
[Date "2023.03.21"]
[WhiteClock "0:00:42"]
[BlackClock "0:00:04"]

1. e4 {[%clk 0:03:00]}  c5 {[%clk 0:02:59]} 2. Nf3 {[%clk 0:03:00]}  Nc6 {[%clk 0:02:59]} 3. Bb5 {[%clk 0:02:59]}  Qc7 {[%clk 0:02:58]} 4. O-O {[%clk 0:02:53]}  a6 {[%clk 0:02:58]} 5. Bxc6 {[%clk 0:02:52]}  Qxc6 {[%clk 0:02:58]} 6. d4 {[%clk 0:02:52]}  cxd4 {[%clk 0:02:58]} 7. Nxd4 {[%clk 0:02:53]}  Qc7 {[%clk 0:02:59]} 8. Nc3 {[%clk 0:02:54]}  e6 {[%clk 0:02:56]} 9. Bg5 {[%clk 0:02:53]}  Be7 {[%clk 0:02:49]} 10. Qg4 {[%clk 0:02:53]}  h5 {[%clk 0:02:42]} 11. Qh4 {[%clk 0:02:50]}  f6 {[%clk 0:02:25]} 12. Be3 {[%clk 0:02:45]}  g5 {[%clk 0:02:25]} 13. Qh3 {[%clk 0:02:37]}  b5 {[%clk 0:02:13]} 14. a3 {[%clk 0:02:13]}  Bb7 {[%clk 0:02:05]} 15. Rfe1 {[%clk 0:02:04]}  O-O-O {[%clk 0:01:58]} 16. Qf3 {[%clk 0:01:58]}  f5 {[%clk 0:01:43]} 17. Qe2 {[%clk 0:01:56]}  f4 {[%clk 0:01:41]} 18. Ndxb5 {[%clk 0:01:56]}  axb5 {[%clk 0:01:39]} 19. Nxb5 {[%clk 0:01:56]}  Ba6 {[%clk 0:01:16]} 20. Bd4 {[%clk 0:01:41]}  e5 {[%clk 0:01:02]} 21. Bc3 {[%clk 0:01:37]}  Nf6 {[%clk 0:00:52]} 22. Bb4 {[%clk 0:01:17]}  Rde8 {[%clk 0:00:40]} 23. c4 {[%clk 0:01:03]}  Bxb5 {[%clk 0:00:36]} 24. cxb5 {[%clk 0:01:04]}  Bxb4 {[%clk 0:00:31]} 25. axb4 {[%clk 0:01:04]}  Kd8 {[%clk 0:00:31]} 26. b6 {[%clk 0:00:55]}  Qxb6 {[%clk 0:00:27]} 27. Ra6 {[%clk 0:00:55]}  Qxb4 {[%clk 0:00:21]} 28. Rxf6 {[%clk 0:00:54]}  Ke7 {[%clk 0:00:18]} 29. Rf5 {[%clk 0:00:53]}  Qd4 {[%clk 0:00:12]} 30. Rd1 {[%clk 0:00:52]}  Qc5 {[%clk 0:00:10]} 31. Rxg5 {[%clk 0:00:50]}  Reg8 {[%clk 0:00:10]} 32. Qd3 {[%clk 0:00:43]}  Rxg5 {[%clk 0:00:07]} 33. Qxd7+ {[%clk 0:00:43]}  Kf6 {[%clk 0:00:07]} 34. Rd6+ {[%clk 0:00:42]}  Qxd6 {[%clk 0:00:08]} 35. Qxd6+ {[%clk 0:00:43]}  Kg7 {[%clk 0:00:08]} 36. Qe7+ {[%clk 0:00:43]}  Kh6 {[%clk 0:00:07]} 37. Qf6+ {[%clk 0:00:42]}  Kh7 {[%clk 0:00:04]} 38. Qxg5 {[%clk 0:00:42]} 1-0


[Site "https://www.chess.com"]